bitfinex/quotes_BTCUSD_20250618
["timestamp","ask_amount","ask_price","bid_price","bid_amount"]
[1750287425204,5.88761937,105030.0,105020.0,0.0001]
[1750287425434,5.90545165,105030.0,105020.0,0.0001]
[1750287425643,5.75089165,105030.0,105020.0,0.19053991]
[1750287425847,5.94517165,105030.0,105020.0,0.19053991]
[1750287426051,5.96421354,105030.0,105020.0,0.24313991]
[1750287426266,5.77945417,105030.0,105020.0,0.24313991]
[1750287426483,5.95751966,105030.0,105020.0,0.24313991]
[1750287426703,5.96420571,105030.0,105020.0,0.24313991]
[1750287428164,5.96419775,105030.0,105020.0,0.24313991]
[1750287428444,5.96420304,105030.0,105020.0,0.24313991]
[1750287428583,5.95468223,105030.0,105020.0,0.24313991]
[1750287429230,5.76040223,105030.0,105020.0,0.24313991]
[1750287429435,5.95468223,105030.0,105020.0,0.24313991]
[1750287430361,5.95468567,105030.0,105020.0,0.24313991]
[1750287431081,5.95468976,105030.0,105020.0,0.24313991]
[1750287432499,5.92606676,105030.0,105020.0,0.24313991]
[1750287434002,5.92607137,105030.0,105020.0,0.24313991]
[1750287436476,5.92607231,105030.0,105020.0,0.24313991]
[1750287436985,5.92607418,105030.0,105020.0,0.24313991]
[1750287439745,5.92607591,105030.0,105020.0,0.24313991]
[1750287440601,5.92607912,105030.0,105020.0,0.24313991]
[1750287440827,5.9082334,105030.0,105020.0,0.24313991]
[1750287441044,5.89871232,105030.0,105020.0,0.24313991]
[1750287442722,5.847382,105030.0,105020.0,0.24313991]
[1750287443187,5.87022628,105030.0,105020.0,0.24313991]
[1750287443376,5.89878163,105030.0,105020.0,0.0527]
[1750287443995,5.87022628,105030.0,105020.0,0.0527]
[1750287444220,5.847382,105030.0,105020.0,0.24313991]
[1750287444644,5.71566904,105030.0,105020.0,0.31979396]
[1750287444854,5.87022904,105030.0,105020.0,0.24313991]
[1750287445506,5.89878784,105030.0,105020.0,0.24313991]
[1750287445732,5.89878965,105030.0,105020.0,0.24313991]
[1750287446406,5.89879131,105030.0,105020.0,0.24313991]
[1750287448560,5.89879131,105030.0,105020.0,0.0527]
[1750287450903,5.89879524,105030.0,105020.0,0.0527]
[1750287451760,5.89880034,105030.0,105020.0,0.0527]
[1750287452509,5.89880032,105030.0,105020.0,0.0527]
[1750287452826,5.93687872,105030.0,105020.0,0.0527]
[1750287453269,5.93687872,105030.0,105020.0,0.0001]
[1750287453707,5.93687872,105030.0,105020.0,0.0531]
[1750287455942,5.58101686,105030.0,105020.0,0.0531]
[1750287457518,5.5810172,105030.0,105020.0,0.0531]
[1750287457951,5.9210172,105030.0,105020.0,0.0531]
[1750287460332,5.92101713,105030.0,105020.0,0.0531]
[1750287463170,5.90538938,105030.0,105020.0,0.0531]
[1750287463372,5.92102458,105030.0,105020.0,0.0531]
[1750287465899,5.95910298,105030.0,105020.0,0.0531]
[1750287466103,5.95910291,105030.0,105020.0,0.0531]
[1750287470344,6.05525213,105030.0,105020.0,0.0001]
[1750287470560,6.10002155,105030.0,105020.0,0.0001]
[1750287470766,6.12864755,105030.0,105020.0,0.0001]
[1750287471858,6.11301242,105030.0,105020.0,0.0001]
[1750287472069,6.12864608,105030.0,105020.0,0.0001]
[1750287472493,6.07674608,105030.0,105020.0,0.0001]
[1750287472702,6.01977257,105030.0,105020.0,0.0001]
[1750287472907,6.01877257,105030.0,105020.0,0.0001]
[1750287473123,5.99061341,105030.0,105020.0,0.0001]
[1750287473538,5.98861341,105030.0,105020.0,0.0001]
[1750287473958,5.98961341,105030.0,105020.0,0.0001]
[1750287474771,5.98960314,105030.0,105020.0,0.0001]
[1750287477005,6.00414399,105030.0,105020.0,0.0001]
[1750287477687,6.00413912,105030.0,105020.0,0.0001]
[1750287478056,6.03143912,105030.0,105020.0,0.0001]
[1750287478261,6.15438834,105030.0,105020.0,0.0001]
[1750287478448,6.05823912,105030.0,105020.0,0.0001]
[1750287479162,6.03143897,105030.0,105020.0,0.0001]
[1750287480634,6.03143995,105030.0,105020.0,0.0001]
[1750287480816,6.00413995,105030.0,105020.0,0.0001]
[1750287481028,5.75986773,105030.0,105020.0,0.0001]
[1750287481213,5.73042296,105030.0,105020.0,0.0001]
[1750287481631,5.73042282,105030.0,105020.0,0.0001]
[1750287483295,5.730423,105030.0,105020.0,0.0001]
[1750287486211,5.73042255,105030.0,105020.0,0.0001]
[1750287489032,5.72372872,105030.0,105020.0,0.0001]
[1750287489294,5.73042336,105030.0,105020.0,0.0001]
[1750287491001,5.76850176,105030.0,105020.0,0.0001]
[1750287491268,5.83751914,105030.0,105020.0,0.0001]
[1750287491469,5.76850176,105030.0,105020.0,0.0001]
[1750287492495,5.73993758,105030.0,105020.0,0.0001]
[1750287493574,5.73993758,105030.0,105020.0,0.055]
[1750287494254,5.76850865,105030.0,105020.0,0.055]
[1750287494490,5.73994032,105030.0,105020.0,0.055]
[1750287494719,5.76851044,105030.0,105020.0,0.055]
[1750287495516,5.73994032,105030.0,105020.0,0.055]
[1750287495728,5.76851291,105030.0,105020.0,0.055]
[1750287495963,5.73994032,105030.0,105020.0,0.055]
[1750287496394,5.76851343,105030.0,105020.0,0.055]
[1750287496633,5.73994032,105030.0,105020.0,0.055]
[1750287497809,5.58538032,105030.0,105020.0,0.055]
[1750287498029,5.71626119,105030.0,105020.0,0.055]
[1750287498853,5.68763519,105030.0,105020.0,0.055]
[1750287499348,5.68759519,105030.0,105020.0,0.055]
[1750287500663,5.68759663,105030.0,105020.0,0.055]
[1750287502801,5.49299663,105030.0,105020.0,0.055]
[1750287502969,5.68755663,105030.0,105020.0,0.055]
[1750287503778,5.76170141,105030.0,105020.0,0.055]
[1750287504192,5.79032741,105030.0,105020.0,0.055]
[1750287504435,5.79032722,105030.0,105020.0,0.055]
[1750287505262,5.79032722,105030.0,105020.0,0.0001]
[1750287505722,5.92455469,105030.0,105020.0,0.0001]
[1750287505937,5.34678521,105010.0,105000.0,0.063]
[1750287506147,5.6760976,105010.0,105000.0,0.063]
[1750287506331,5.67609701,105010.0,105000.0,0.063]
[1750287506821,5.71919945,105010.0,105000.0,0.063]
[1750287507029,5.71919945,105010.0,105000.0,0.0101]
[1750287507240,5.72019945,105010.0,105000.0,0.0101]
[1750287507453,5.72019749,105010.0,105000.0,0.0101]
[1750287508294,5.72119749,105010.0,105000.0,0.0101]
[1750287508542,5.72019749,105010.0,105000.0,0.0101]
[1750287508777,5.72119749,105010.0,105000.0,0.0101]
[1750287509238,5.72119043,105010.0,105000.0,0.0101]
[1750287509948,5.72119043,105010.0,105000.0,0.0356]
[1750287510201,5.72119043,105010.0,105000.0,0.0638]
[1750287510436,5.74982343,105010.0,105000.0,0.0638]
[1750287510686,5.84597265,105010.0,105000.0,0.0101]
[1750287510892,5.84597265,105010.0,104990.0,0.0001]
[1750287510893,5.40752266,105000.0,104990.0,0.0001]
[1750287511138,5.40752266,105000.0,104980.0,0.0001]
[1750287511139,5.38034171,104990.0,104980.0,0.0001]
[1750287511373,5.35186076,104980.0,104970.0,0.0001]
[1750287511590,5.66982813,104980.0,104970.0,0.0001]
[1750287512015,5.65423096,104980.0,104970.0,0.0001]
[1750287512258,5.66978531,104980.0,104970.0,0.0001]
[1750287512468,5.66994491,104980.0,104970.0,0.0001]
[1750287512673,5.76609413,104980.0,104970.0,0.0001]
[1750287513550,5.76909425,104980.0,104970.0,0.0517]
[1750287513767,5.66964318,104980.0,104970.0,0.0517]
[1750287514665,5.66963469,104980.0,104970.0,0.0517]
[1750287515963,5.47495469,104980.0,104970.0,0.0517]
[1750287516167,5.66975469,104980.0,104970.0,0.0517]
[1750287517959,5.70776688,104980.0,104970.0,0.0517]
[1750287518609,5.6697365,104980.0,104970.0,0.0517]
[1750287519028,5.66086649,104980.0,104970.0,0.0517]
[1750287520662,5.65420871,104980.0,104970.0,0.0517]
[1750287520802,5.66085964,104980.0,104970.0,0.0517]
[1750287523763,5.66085964,104980.0,104970.0,0.05190034]
[1750287524506,5.76354577,104980.0,104970.0,0.00030034]
[1750287524736,5.79218577,104980.0,104970.0,0.00030034]
[1750287525382,5.80104738,104980.0,104970.0,0.00030034]
[1750287525837,5.85274738,104980.0,104970.0,0.00030034]
[1750287526050,5.80104738,104980.0,104970.0,0.00030034]
[1750287526475,5.79439567,104980.0,104970.0,0.00030034]
[1750287526704,5.80104129,104980.0,104970.0,0.00030034]
[1750287527569,5.80104129,104980.0,104970.0,0.05260034]
[1750287528256,5.77159652,104980.0,104970.0,0.05260034]
[1750287528892,5.71289601,104980.0,104970.0,0.05260034]
[1750287529350,5.70625039,104980.0,104970.0,0.05260034]
[1750287529555,5.71289986,104980.0,104970.0,0.05260034]
[1750287532359,5.71290684,104980.0,104970.0,0.05260034]
[1750287532774,5.74138824,104980.0,104970.0,0.05260034]
[1750287534928,5.72684739,104980.0,104970.0,0.05260034]
[1750287535145,5.71798656,104980.0,104970.0,0.05260034]
[1750287535368,5.72695831,104980.0,104970.0,0.05260034]
[1750287535584,5.6983183,104980.0,104970.0,0.05260034]
[1750287537336,5.73633917,104980.0,104970.0,0.05260034]
[1750287537751,5.6983183,104980.0,104970.0,0.05260034]
[1750287538181,5.68942656,104980.0,104970.0,0.05260034]
[1750287538389,5.73635565,104980.0,104970.0,0.05260034]
[1750287539027,5.73635561,104980.0,104970.0,0.05260036]
[1750287539473,5.70787421,104980.0,104970.0,0.05260036]
[1750287540292,5.57002769,104980.0,104970.0,0.05260036]
[1750287540511,5.76490769,104980.0,104970.0,0.05260036]
[1750287540946,5.76496151,104980.0,104970.0,0.05260036]
[1750287541377,5.72694064,104980.0,104970.0,0.05260036]
[1750287541587,5.76501417,104980.0,104970.0,0.05260036]
[1750287542014,5.82308986,104980.0,104970.0,0.05260036]
[1750287542454,5.85253303,104980.0,104970.0,0.05260037]
[1750287543544,5.75638381,104980.0,104970.0,0.05260037]
[1750287543749,5.75638178,104980.0,104970.0,0.05260037]
[1750287543955,5.75638172,104980.0,104970.0,0.05260037]
[1750287544603,5.75638177,104980.0,104970.0,0.05260037]
[1750287544882,5.79445373,104980.0,104970.0,0.05260037]
[1750287545111,5.75638177,104980.0,104970.0,0.05260037]
[1750287546516,5.79445371,104980.0,104970.0,0.05260037]
[1750287546722,5.75638177,104980.0,104970.0,0.05260037]
[1750287547149,5.79445364,104980.0,104970.0,0.05260037]
[1750287547574,5.75638177,104980.0,104970.0,0.05260037]
[1750287548430,5.79445402,104980.0,104970.0,0.05260037]
[1750287549069,5.79445414,104980.0,104970.0,0.05260037]
[1750287549274,5.75638189,104980.0,104970.0,0.05260037]
[1750287549487,5.75638184,104980.0,104970.0,0.05260037]
[1750287550326,5.79445445,104980.0,104970.0,0.05260037]
[1750287550537,5.75638184,104980.0,104970.0,0.05260037]
[1750287550964,5.79445451,104980.0,104970.0,0.05260037]
[1750287552342,5.88379257,104980.0,104970.0,0.05260037]
[1750287552597,5.91395173,104980.0,104970.0,0.05260037]
[1750287552825,5.87587906,104980.0,104970.0,0.05260037]
[1750287553035,5.87587922,104980.0,104970.0,0.05260037]
[1750287553240,5.91243336,104980.0,104970.0,0.05260037]
[1750287553901,5.78502132,104980.0,104970.0,0.05260037]
[1750287554325,5.82309522,104980.0,104970.0,0.05260037]
[1750287556213,5.78502132,104980.0,104970.0,0.05260037]
[1750287558016,5.76940596,104980.0,104970.0,0.05260037]
[1750287558274,5.78502161,104980.0,104970.0,0.05260037]
[1750287558895,5.78502161,104980.0,104970.0,0.05260038]
[1750287559590,5.82309501,104980.0,104970.0,0.05260038]
[1750287559904,5.79365024,104980.0,104970.0,0.05260038]
[1750287560133,5.59877024,104980.0,104970.0,0.05260038]
[1750287560375,5.70809776,104980.0,104970.0,0.05260038]
[1750287560833,5.69248211,104980.0,104970.0,0.05260038]
[1750287561055,5.7080987,104980.0,104970.0,0.05260038]
[1750287561278,5.73665444,104980.0,104970.0,0.05260038]
[1750287561490,5.7080987,104980.0,104970.0,0.05260038]
[1750287562663,5.73665364,104980.0,104970.0,0.05260038]
[1750287562862,5.7080987,104980.0,104970.0,0.05260038]
[1750287563274,5.73665376,104980.0,104970.0,0.05260038]
[1750287563784,5.73665361,104980.0,104970.0,0.05260038]
[1750287564602,5.54165361,104980.0,104970.0,0.05260038]
[1750287564810,5.73657361,104980.0,104970.0,0.05260038]
[1750287565244,5.54165361,104980.0,104970.0,0.05260038]
[1750287565465,5.73657361,104980.0,104970.0,0.05260038]
[1750287566565,5.73657316,104980.0,104970.0,0.05260038]
[1750287567419,5.69849976,104980.0,104970.0,0.05260038]
[1750287567774,5.73657316,104980.0,104970.0,0.05260038]
[1750287568192,5.69849976,104980.0,104970.0,0.05260038]
[1750287568393,5.50357976,104980.0,104970.0,0.05260038]
[1750287568595,5.69845976,104980.0,104970.0,0.05260038]
[1750287568800,5.54165316,104980.0,104970.0,0.05260038]
[1750287569002,5.73653316,104980.0,104970.0,0.05260038]
[1750287569415,5.73653177,104980.0,104970.0,0.05260038]
[1750287570181,5.69845837,104980.0,104970.0,0.05260038]
[1750287570363,5.73653177,104980.0,104970.0,0.05260038]
[1750287570960,5.69845837,104980.0,104970.0,0.05260038]
[1750287571648,5.73653177,104980.0,104970.0,0.05260039]
[1750287572514,5.73653099,104980.0,104970.0,0.05260039]
[1750287572754,5.69845765,104980.0,104970.0,0.05260039]
[1750287573010,5.73653105,104980.0,104970.0,0.05260039]
[1750287573398,5.69845765,104980.0,104970.0,0.05260039]
[1750287573818,5.73653105,104980.0,104970.0,0.05260039]
[1750287574807,5.69845765,104980.0,104970.0,0.05260039]
[1750287575030,5.73653105,104980.0,104970.0,0.05260039]
[1750287575455,5.69845739,104980.0,104970.0,0.05260039]
[1750287575664,5.73653079,104980.0,104970.0,0.05260039]
[1750287578200,5.72983851,104980.0,104970.0,0.05260039]
[1750287578417,5.73652915,104980.0,104970.0,0.05260039]
[1750287581113,5.72983833,104980.0,104970.0,0.05260039]
[1750287581324,5.73652959,104980.0,104970.0,0.05260039]
[1750287583679,5.54164959,104980.0,104970.0,0.05260039]
[1750287583892,5.73632959,104980.0,104970.0,0.05260039]
[1750287584097,5.58156959,104980.0,104970.0,0.05260039]
[1750287584317,5.73632959,104980.0,104970.0,0.05260039]
[1750287586938,5.72740825,104980.0,104970.0,0.05260039]
[1750287587142,5.73633206,104980.0,104970.0,0.05260039]
[1750287587546,5.69825866,104980.0,104970.0,0.05260039]
[1750287588019,5.73633206,104980.0,104970.0,0.05260039]
[1750287588678,5.58157206,104980.0,104970.0,0.05260039]
[1750287588893,5.6020169,104980.0,104970.0,0.05260039]
[1750287589564,5.6020192,104980.0,104970.0,0.05260039]
[1750287589775,5.6010192,104980.0,104970.0,0.05260039]
[1750287589979,5.59902216,104980.0,104970.0,0.05260039]
[1750287590620,5.59902216,104980.0,104970.0,0.0526004]
[1750287591106,5.44101153,104980.0,104970.0,0.0526004]
[1750287591283,5.41245638,104980.0,104970.0,0.0526004]
[1750287591707,5.42198182,104980.0,104970.0,0.0526004]
[1750287592818,5.42197955,104980.0,104970.0,0.0526004]
[1750287593146,5.22729955,104980.0,104970.0,0.0526004]
[1750287593355,5.42197955,104980.0,104970.0,0.0526004]
[1750287595615,5.41528751,104980.0,104970.0,0.0526004]
[1750287595738,5.42197942,104980.0,104970.0,0.0526004]
[1750287597551,0.44906839,104980.0,104970.0,0.25265736]
[1750287597967,0.44906839,104980.0,104970.0,0.26218361]
[1750287598733,0.44905499,104980.0,104970.0,0.26218361]
[1750287599271,0.42622135,104980.0,104970.0,0.26218361]
[1750287599471,0.42622135,104980.0,104970.0,0.27170977]
[1750287599695,0.42622135,104980.0,104970.0,0.27170978]
[1750287600334,0.4490497,104980.0,104970.0,0.27170978]
[1750287600533,0.42622135,104980.0,104970.0,0.27170978]
[1750287601166,0.44904574,104980.0,104970.0,0.27170978]
[1750287601402,0.44903008,104980.0,104970.0,0.27170978]
[1750287601626,0.44903008,104980.0,104970.0,0.28123585]
[1750287601831,0.44903008,104980.0,104970.0,0.29076183]
[1750287602478,0.43342808,104980.0,104970.0,0.29076138]
[1750287602973,0.43342808,104980.0,104970.0,0.26218344]
[1750287603375,0.44234112,104980.0,104970.0,0.26218344]
[1750287603612,0.39078785,104980.0,104970.0,0.26218344]
[1750287603825,0.36857513,104980.0,104970.0,0.27170933]
[1750287604072,0.01904915,104990.0,104980.0,0.26858851]
[1750287604358,0.42798165,104990.0,104980.0,0.26878892]
[1750287604577,0.57750636,104990.0,104980.0,0.26878911]
[1750287604798,0.55906819,104990.0,104980.0,0.26878911]
[1750287605423,0.54301904,104990.0,104980.0,0.25926403]
[1750287605775,0.54301904,104990.0,104980.0,0.27831482]
[1750287607189,0.54301904,104990.0,104980.0,0.26878947]
[1750287608377,0.54301904,104990.0,104980.0,0.27831482]
[1750287609918,0.54201904,104990.0,104980.0,0.27831482]
[1750287610859,0.54001904,104990.0,104980.0,0.27831482]
[1750287611063,0.53049433,104990.0,104980.0,0.25926403]
[1750287613980,0.53049433,104990.0,104980.0,0.05922603]
[1750287614182,0.53049433,104990.0,104980.0,0.04970041]
[1750287614405,0.53049433,104990.0,104980.0,0.24021288]
[1750287614815,0.53049433,104990.0,104980.0,0.04970041]
[1750287616098,0.53049433,104990.0,104980.0,0.24021288]
[1750287616303,0.53049433,104990.0,104980.0,0.25926403]
[1750287616710,0.53049433,104990.0,104980.0,0.04970041]
[1750287618991,0.5622012,104990.0,104980.0,0.04970041]
[1750287619878,0.56888051,104990.0,104980.0,0.04970041]
[1750287620692,5.36616251,104990.0,104980.0,0.04970041]
[1750287621253,5.36616504,104990.0,104980.0,0.04970041]
[1750287622299,5.17567071,104990.0,104980.0,0.04970041]
[1750287622533,5.36616504,104990.0,104980.0,0.04970041]
[1750287622751,5.36616637,104990.0,104980.0,0.04970041]
[1750287623658,5.46240813,104990.0,104980.0,0.00020041]
[1750287625148,5.46240846,104990.0,104980.0,0.00020041]
[1750287625772,5.46240846,104990.0,104980.0,0.02480041]
[1750287626017,5.46240846,104990.0,104980.0,0.04890041]
[1750287626837,5.61761888,104990.0,104980.0,0.04890041]
[1750287629463,5.61761888,104990.0,104980.0,0.00020041]
[1750287629678,5.60870767,104990.0,104980.0,0.00020041]
[1750287629887,5.61762565,104990.0,104980.0,0.00020041]
[1750287631251,5.65770565,104990.0,104980.0,0.00020041]
[1750287631459,5.65770513,104990.0,104980.0,0.00020041]
[1750287632268,5.68620787,104990.0,104980.0,0.00020041]
[1750287633284,5.65770513,104990.0,104980.0,0.00020041]
[1750287633521,5.68620738,104990.0,104980.0,0.00020041]
[1750287633733,5.65770464,104990.0,104980.0,0.00020041]
[1750287634206,5.65770464,104990.0,104980.0,0.02470041]
[1750287634686,5.65770464,104990.0,104980.0,0.04980041]
[1750287635211,5.68620631,104990.0,104980.0,0.04980041]
[1750287635652,5.68620638,104990.0,104980.0,0.04980041]
[1750287635854,5.65770364,104990.0,104980.0,0.04980041]
[1750287636053,5.64878715,104990.0,104980.0,0.04980041]
[1750287636384,5.65770319,104990.0,104980.0,0.04980041]
[1750287636515,5.65770322,104990.0,104980.0,0.04980041]
[1750287637747,5.65770318,104990.0,104980.0,0.04980041]
[1750287638541,5.64209915,104990.0,104980.0,0.04980041]
[1750287638767,5.65770282,104990.0,104980.0,0.04980041]
[1750287639943,5.65770282,104990.0,104980.0,0.00020041]
[1750287640158,5.68620556,104990.0,104980.0,0.00020041]
[1750287640367,5.71565033,104990.0,104980.0,0.00020041]
[1750287640591,5.76990949,104990.0,104980.0,0.00020041]
[1750287640819,5.79860208,104990.0,104980.0,0.00020041]
[1750287641046,5.82370208,104990.0,104980.0,0.00020041]
[1750287641235,5.81701479,104990.0,104980.0,0.00020041]
[1750287641379,5.823703,104990.0,104980.0,0.00020041]
[1750287641604,5.798603,104990.0,104980.0,0.00020041]
[1750287642803,5.774503,104990.0,104980.0,0.00020041]
[1750287644300,5.77450343,104990.0,104980.0,0.00020041]
[1750287644742,5.74434427,104990.0,104980.0,0.00020041]
[1750287647194,5.74434713,104990.0,104980.0,0.00020041]
[1750287649990,5.73543075,104990.0,104980.0,0.00020041]
[1750287650189,5.7443556,104990.0,104980.0,0.00020041]
[1750287650590,5.7443556,104990.0,104980.0,0.04900041]
[1750287651087,5.74435689,104990.0,104980.0,0.04900041]
[1750287652959,5.74435985,104990.0,104980.0,0.04900041]
[1750287653177,5.71491508,104990.0,104980.0,0.04900041]
[1750287653385,5.71483511,104990.0,104980.0,0.04900041]
[1750287657736,5.71483818,104990.0,104980.0,0.04900041]
[1750287659820,5.75291158,104990.0,104980.0,0.04900041]
[1750287661352,5.75291506,104990.0,104980.0,0.04900041]
[1750287661770,5.71484166,104990.0,104980.0,0.04900041]
[1750287662197,5.75291506,104990.0,104980.0,0.04900041]
[1750287664169,5.75291594,104990.0,104980.0,0.04900041]
[1750287666113,5.74398562,104990.0,104980.0,0.04900041]
[1750287666300,5.75291652,104990.0,104980.0,0.04900041]
[1750287666926,5.7462188,104990.0,104980.0,0.04900041]
[1750287667188,5.75291699,104990.0,104980.0,0.04900041]
[1750287670006,5.75292268,104990.0,104980.0,0.04900041]
[1750287671096,5.74622205,104990.0,104980.0,0.04900041]
[1750287671297,5.75292269,104990.0,104980.0,0.04900041]
[1750287673634,5.75268269,104990.0,104980.0,0.04900041]
[1750287673844,5.75268269,104990.0,104980.0,0.0490004]
[1750287674844,5.72404669,104990.0,104980.0,0.0490004]
[1750287675337,5.72388669,104990.0,104980.0,0.0490004]
[1750287675578,5.68581329,104990.0,104980.0,0.0490004]
[1750287675772,5.72396699,104990.0,104980.0,0.0490004]
[1750287675980,5.68589359,104990.0,104980.0,0.0490004]
[1750287676891,5.685893,104990.0,104980.0,0.0490004]
[1750287677543,5.7239264,104990.0,104980.0,0.0490004]
[1750287677979,5.52908558,104990.0,104980.0,0.0490004]
[1750287678197,5.72392558,104990.0,104980.0,0.0490004]
[1750287678673,5.72392585,104990.0,104980.0,0.0490004]
[1750287679157,5.68585245,104990.0,104980.0,0.0490004]
[1750287679357,5.72392585,104990.0,104980.0,0.0490004]
[1750287681485,5.72392547,104990.0,104980.0,0.0490004]
[1750287682016,5.43284371,104990.0,104980.0,0.0490004]
[1750287682239,5.58957031,104990.0,104980.0,0.0490004]
[1750287683379,5.58957049,104990.0,104980.0,0.0490004]
[1750287684309,5.58287042,104990.0,104980.0,0.0490004]
[1750287684544,5.58957014,104990.0,104980.0,0.0490004]
[1750287686999,5.39477014,104990.0,104980.0,0.0490004]
[1750287687197,5.54956956,104990.0,104980.0,0.0490004]
[1750287690190,5.54956499,104990.0,104980.0,0.0490004]
[1750287690599,5.54286716,104990.0,104980.0,0.0490004]
[1750287690808,5.54956505,104990.0,104980.0,0.0490004]
[1750287691728,5.54286716,104990.0,104980.0,0.0490004]
[1750287692302,5.549565,104990.0,104980.0,0.0490004]
[1750287692510,5.53393672,104990.0,104980.0,0.0490004]
[1750287693009,5.54286776,104990.0,104980.0,0.0490004]
[1750287693137,5.53393672,104990.0,104980.0,0.0490004]
[1750287693339,5.54063505,104990.0,104980.0,0.0490004]
[1750287694500,5.54286797,104990.0,104980.0,0.0490004]
[1750287694958,5.54063515,104990.0,104980.0,0.0490004]
[1750287695289,5.57377672,104990.0,104980.0,0.0490004]
[1750287695710,5.58270798,104990.0,104980.0,0.0490004]
[1750287696064,5.58940638,104990.0,104980.0,0.0490004]
[1750287696798,5.58940636,104990.0,104980.0,0.0490004]
[1750287697009,5.64901029,104990.0,104980.0,0.0002004]
[1750287697215,5.68708369,104990.0,104980.0,0.0481004]
[1750287699645,5.67815243,104990.0,104980.0,0.0481004]
[1750287699853,5.68708367,104990.0,104980.0,0.0481004]
[1750287700081,5.65692451,104990.0,104980.0,0.0481004]
[1750287704416,5.25031756,104990.0,104980.0,0.0481004]
[1750287705055,5.74138632,104990.0,104980.0,0.0481004]
[1750287705511,5.75031869,104990.0,104980.0,0.0481004]
[1750287706612,6.09032102,104990.0,104980.0,0.0481004]
[1750287707101,6.090321,104990.0,104980.0,0.0481004]
[1750287707336,6.06087623,104990.0,104980.0,0.0481004]
[1750287709743,6.06083623,104990.0,104980.0,0.0481004]
[1750287711136,6.06083843,104990.0,104980.0,0.0481004]
[1750287714071,6.0541376,104990.0,104980.0,0.0481004]
[1750287714289,6.06083842,104990.0,104980.0,0.0481004]
[1750287714496,6.08937197,104990.0,104980.0,0.0481004]
[1750287717046,6.08937272,104990.0,104980.0,0.0481004]
[1750287718397,6.12744612,104990.0,104980.0,0.0481004]
[1750287718669,6.08937272,104990.0,104980.0,0.0481004]
[1750287718889,6.12744612,104990.0,104980.0,0.0481004]
[1750287719321,6.08937272,104990.0,104980.0,0.0481004]
[1750287719986,6.08937404,104990.0,104980.0,0.0481004]
[1750287721966,6.08937453,104990.0,104980.0,0.0481004]
[1750287722927,6.12744793,104990.0,104980.0,0.0481004]
[1750287723157,6.08937453,104990.0,104980.0,0.0481004]
[1750287723405,6.12744793,104990.0,104980.0,0.0481004]
[1750287723619,6.08937453,104990.0,104980.0,0.0481004]
[1750287724615,6.12744793,104990.0,104980.0,0.0481004]
[1750287725132,6.08937453,104990.0,104980.0,0.0481004]
[1750287725669,6.08937502,104990.0,104980.0,0.0481004]
[1750287726328,6.24522071,104990.0,104980.0,0.0002004]
[1750287726530,6.28329411,104990.0,104980.0,0.0002004]
[1750287726746,6.25313495,104990.0,104980.0,0.0002004]
[1750287727399,6.22369018,104990.0,104980.0,0.0002004]
[1750287728353,6.22369082,104990.0,104980.0,0.0002004]
[1750287731594,6.19515727,104990.0,104980.0,0.0002004]
[1750287732066,6.19515551,104990.0,104980.0,0.0002004]
[1750287734094,6.19515447,104990.0,104980.0,0.0002004]
[1750287735941,6.1951537,104990.0,104980.0,0.0002004]
[1750287736151,6.22374283,104990.0,104980.0,0.0002004]
[1750287736363,6.22374283,104990.0,104980.0,0.0246004]
[1750287736802,6.22374283,104990.0,104980.0,0.0499004]
[1750287736990,6.22374178,104990.0,104980.0,0.0499004]
[1750287737847,6.25237878,104990.0,104980.0,0.0499004]
[1750287739119,6.25237849,104990.0,104980.0,0.0499004]
[1750287740310,6.25237849,104990.0,104980.0,0.0002004]
[1750287740947,6.25237843,104990.0,104980.0,0.0002004]
[1750287742618,6.24344445,104990.0,104980.0,0.0002004]
[1750287742821,6.25237777,104990.0,104980.0,0.0002004]
[1750287743900,6.09761777,104990.0,104980.0,0.0002004]
[1750287744141,6.25229777,104990.0,104980.0,0.0493004]
[1750287745709,6.21422437,104990.0,104980.0,0.0493004]
[1750287746991,6.19139753,104990.0,104980.0,0.0493004]
[1750287747206,6.1628084,104990.0,104980.0,0.0493004]
[1750287747642,5.9682884,104990.0,104980.0,0.0493004]
[1750287747861,6.1628084,104990.0,104980.0,0.0493004]
[1750287748077,6.18567963,104990.0,104980.0,0.0493004]
[1750287748506,6.18568154,104990.0,104980.0,0.0493004]
[1750287748724,6.21427051,104990.0,104980.0,0.0493004]
[1750287748939,6.05955051,104990.0,104980.0,0.0493004]
[1750287749238,6.21427051,104990.0,104980.0,0.0493004]
[1750287749459,6.01975051,104990.0,104980.0,0.0493004]
[1750287749658,6.18568147,104990.0,104980.0,0.0493004]
[1750287749768,6.16281029,104990.0,104980.0,0.0493004]
[1750287750256,6.2142722,104990.0,104980.0,0.0493004]
[1750287750463,5.71014415,104990.0,104980.0,0.25886366]
[1750287750676,0.52515946,104990.0,104980.0,0.34504269]
[1750287750899,0.54420762,104990.0,104980.0,0.34504269]
[1750287751101,0.89755705,104990.0,104980.0,0.34504269]
[1750287751301,0.90708131,104990.0,104980.0,0.34504269]
[1750287751725,0.89144611,104990.0,104980.0,0.34504269]
[1750287752254,0.86857233,104990.0,104980.0,0.34504269]
[1750287752453,0.86857233,104990.0,104980.0,0.26838864]
[1750287752640,0.85908807,104990.0,104980.0,0.26838864]
[1750287752881,0.84956399,104990.0,104980.0,0.26838864]
[1750287753296,0.85908825,104990.0,104980.0,0.26838864]
[1750287754065,0.86861269,104990.0,104980.0,0.26838864]
[1750287754312,0.85908825,104990.0,104980.0,0.26838864]
[1750287754689,0.85908816,104990.0,104980.0,0.26838864]
[1750287754850,0.8686126,104990.0,104980.0,0.26838864]
[1750287755275,0.86861251,104990.0,104980.0,0.26838864]
[1750287755910,0.87813704,104990.0,104980.0,0.26838864]
[1750287756479,0.84004,104990.0,104980.0,0.26838864]
[1750287756736,0.86861296,104990.0,104980.0,0.26838864]
[1750287757285,0.86861296,104990.0,104980.0,0.42306864]
[1750287757596,1.06863191,104990.0,104980.0,0.42306864]
[1750287757800,1.07815662,104990.0,104980.0,0.42306864]
[1750287758002,1.06863254,104990.0,104980.0,0.41354366]
[1750287758627,1.06863254,104990.0,104980.0,0.42306873]
[1750287759697,1.06863254,104990.0,104980.0,0.41354366]
[1750287761044,1.05910738,104990.0,104980.0,0.42306864]
[1750287761262,0.87813713,104990.0,104980.0,0.42306864]
[1750287761460,0.8686126,104990.0,104980.0,0.42306864]
[1750287761678,0.85908825,104990.0,104980.0,0.42306864]
[1750287761918,0.86861269,104990.0,104980.0,0.42306864]
[1750287762141,0.8686126,104990.0,104980.0,0.42306864]
[1750287762562,0.87813713,104990.0,104980.0,0.42306864]
[1750287763543,0.8686126,104990.0,104980.0,0.42306864]
[1750287764583,0.8686126,104990.0,104980.0,0.26838864]
[1750287764764,0.8686126,104990.0,104980.0,0.42306864]
[1750287765694,0.84004,104990.0,104980.0,0.42306864]
[1750287765914,0.85908807,104990.0,104980.0,0.42306864]
[1750287766144,0.50956399,104990.0,104980.0,0.5193104]
[1750287766364,0.5095639,104990.0,104980.0,0.5193104]